[Event "9. Korbacher Open 2017"]
[Site "Korbach"]
[Date "2017.10.21"]
[Round "5"]
[White "Van der Meiden, Dirk"]
[Black "Roeberg, Frank"]
[Result "*"]
[ECO "C47"]
[WhiteElo "1958"]
[BlackElo "2194"]
[Annotator "NA"]
[PlyCount "41"]
[EventDate "2017.??.??"]
[EventType "swiss"]
[EventCountry "GER"]
[SourceTitle "playchess.com"]
[Source "ChessBase"]
[SourceQuality "1"]
[TimeControl "40/5400+30:1800+30"]

1. e4 {[%emt 0:01:43]} e5 {[%emt 0:00:11]} 2. Nf3 {[%emt 0:00:12]} Nc6 {[%emt 0:00:08]} 3. Nc3 {[%emt 0:00:10]} Nf6 {[%emt 0:00:10]} 4. d4 {[%emt 0:00:05]} exd4 {[%emt 0:00:13]} 5. Nxd4 {[%emt 0:00:12]} Bb4 {[%emt 0:00:28]} 6. Nxc6 {[%emt 0:00:13]} bxc6 {[%emt 0:00:07]} 7. Bd3 {[%emt 0:00:03]} O-O {[%emt 0:00:19]} 8. O-O {[%emt 0:00:06]} d5 {[%emt 0:00:04]} 9. exd5 {[%emt 0:00:06]} cxd5 {[%emt 0:00:06]} 10. Bg5 {[%emt 0:00:07]} c6 {[%emt 0:00:13]} 11. Na4 {[%emt 0:00:18]} Bd6 {[%emt 0:01:41]} 12. c3 {[%emt 0:00:48]} Bd7 {[%emt 0:04:38]} 13. Bc2 {[%emt 0:00:45]} h6 {[%emt 0:05:30]} 14. Bh4 {[%emt 0:00:42]} Re8 {[%emt 0:04:33]} 15. Qd3 {[%emt 0:06:44]} Re4 {[%emt 0:01:29]} 16. Bg3 {[%emt 0:05:04]} Bxg3 {[%emt 0:04:21]} 17. hxg3 {[%emt 0:01:37]} Qe7 {[%emt 0:01:39]} 18. b4 {[%emt 0:00:54]} Re5 {[%emt 0:08:46]} 19. Qd4 {[%emt 0:08:05]} Re8 {[%emt 0:09:33]} 20. Nc5 {[%emt 0:02:41]} Bc8 {[%emt 0:05:18]} 21. Bd3 {[%emt 0:02:54]} *

[Event "9. Korbacher Open 2017"]
[Site "Korbach"]
[Date "2017.10.21"]
[Round "5"]
[White "Bluebaum, Johanna"]
[Black "Koellner, Ruben Gideon"]
[Result "0-1"]
[ECO "A41"]
[WhiteElo "1955"]
[BlackElo "2148"]
[Annotator "NA"]
[PlyCount "110"]
[EventDate "2017.??.??"]
[EventType "swiss"]
[EventCountry "GER"]
[SourceTitle "playchess.com"]
[Source "ChessBase"]
[SourceQuality "1"]
[TimeControl "40/5400+30:1800+30"]

1. d4 {[%emt 0:03:21]} d6 {[%emt 0:00:05]} 2. Nf3 {[%emt 0:00:15]} Nf6 {[%emt 0:00:08]} 3. c4 {[%emt 0:00:31]} g6 {[%emt 0:00:11]} 4. Nc3 {[%emt 0:00:11]} Bf5 {[%emt 0:00:05]} 5. Nh4 {[%emt 0:00:22]} Bd7 {[%emt 0:00:49]} 6. e4 {[%emt 0:00:10]} Bg7 {[%emt 0:01:00]} 7. Nf3 {[%emt 0:05:22]} O-O {[%emt 0:00:32]} 8. Be2 {[%emt 0:00:29]} c5 {[%emt 0:00:48]} 9. d5 {[%emt 0:00:38]} Na6 {[%emt 0:01:41]} 10. O-O {[%emt 0:00:37]} Nc7 {[%emt 0:00:40]} 11. Bf4 {[%emt 0:03:54]} a6 {[%emt 0:03:28]} 12. a4 {[%emt 0:00:16]} b6 {[%emt 0:07:12]} 13. Nd2 {[%emt 0:07:42]} Rb8 {[%emt 0:02:23]} 14. Qc2 {[%emt 0:04:34]} b5 {[%emt 0:04:32]} 15. a5 {[%emt 0:02:56]} bxc4 {[%emt 0:04:36]} 16. Nxc4 {[%emt 0:01:26]} Bb5 {[%emt 0:01:35]} 17. Nb6 {[%emt 0:05:36]} Nd7 {[%emt 0:02:08]} 18. Nca4 Nxb6 {[%emt 0:02:00]} 19. Nxb6 {[%emt 0:07:39]} Na8 {[%emt 0:00:43]} 20. Nxa8 {[%emt 0:05:27]} Rxa8 {[%emt 0:00:03]} 21. Rfe1 {[%emt 0:07:03]} Rb8 {[%emt 0:03:05]} 22. Ra2 {[%emt 0:01:27]} Bxe2 {[%emt 0:02:00]} 23. Rxe2 {[%emt 0:04:50]} Rb5 {[%emt 0:00:08]} 24. Bd2 {[%emt 0:01:14]} Qc7 {[%emt 0:01:34]} 25. b4 {[%emt 0:02:41]} Rfb8 {[%emt 0:01:06]} 26. g3 {[%emt 0:03:44]} R8b7 {[%emt 0:05:45]} 27. bxc5 {[%emt 0:01:48]} Rxc5 {[%emt 0:00:06]} 28. Qd3 {[%emt 0:02:06]} Rbb5 {[%emt 0:00:26]} 29. Be3 {[%emt 0:02:42]} Rc3 {[%emt 0:00:53]} 30. Bb6 {[%emt 0:00:40]} Qd7 {[%emt 0:03:25]} 31. Qd2 {[%emt 0:02:15]} Qg4 {[%emt 0:02:05]} 32. Re1 {[%emt 0:01:28]} Rcb3 {[%emt 0:02:40]} 33. Rc2 {[%emt 0:00:37]} h5 {[%emt 0:01:02]} 34. Rc7 {[%emt 0:06:33]} Bf6 {[%emt 0:07:15]} 35. Qe2 {[%emt 0:01:44]} Rb1 {[%emt 0:03:51]} 36. Kg2 {[%emt 0:00:02]} Rxe1 {[%emt 0:01:46]} 37. Qxe1 {[%emt 0:00:09]} Rb3 {[%emt 0:02:21]} 38. Rc1 {[%emt 0:06:38]} Qf3+ {[%emt 0:00:37]} 39. Kg1 {[%emt 0:00:26]} Rd3 {[%emt 0:00:43]} 40. Qf1 {[%emt 0:03:36]} Qxe4 {[%emt 0:32:18]} 41. Rd1 {[%emt 0:30:01]} Rxd1 {[%emt 0:02:29]} 42. Qxd1 {[%emt 0:00:02]} Qc4 {[%emt 0:02:37]} 43. h3 {[%emt 0:01:20]} Kg7 {[%emt 0:02:07]} 44. Kg2 {[%emt 0:00:36]} Be5 {[%emt 0:11:10]} 45. f4 {[%emt 0:01:38]} Bf6 {[%emt 0:00:58]} 46. Kf3 {[%emt 0:00:23]} Qc3+ {[%emt 0:02:23]} 47. Kg2 {[%emt 0:01:05]} Qc4 {[%emt 0:02:15]} 48. Kf3 {[%emt 0:00:16]} Kg8 {[%emt 0:00:28]} 49. g4 {[%emt 0:01:19]} Qc3+ {[%emt 0:07:10]} 50. Kg2 {[%emt 0:00:15]} h4 {[%emt 0:01:21]} 51. Qf3 {[%emt 0:00:33]} Qd2+ {[%emt 0:00:00]} 52. Kf1 {[%emt 0:00:00]} Bd4 {[%emt 0:00:00]} 53. Bd8 {[%emt 0:00:00]} Bc3 {[%emt 0:00:00]} 54. Bxe7 {[%emt 0:00:00]} Qe1+ {[%emt 0:00:00]} 55. Kg2 {[%emt 0:00:00]} Bd4 0-1

[Event "9. Korbacher Open 2017"]
[Site "Korbach"]
[Date "2017.10.21"]
[Round "5"]
[White "Dudink, Bas"]
[Black "Aardenburg, Piet"]
[Result "1-0"]
[ECO "D15"]
[WhiteElo "1951"]
[BlackElo "1782"]
[Annotator "NA"]
[PlyCount "82"]
[EventDate "2017.??.??"]
[EventType "swiss"]
[EventCountry "GER"]
[SourceTitle "playchess.com"]
[Source "ChessBase"]
[SourceQuality "1"]
[TimeControl "40/5400+30:1800+30"]

1. d4 {[%emt 0:00:00]} d5 {[%emt 0:00:13]} 2. c4 {[%emt 0:00:00]} c6 {[%emt 0:00:21]} 3. Nf3 {[%emt 0:00:48]} Nf6 {[%emt 0:02:49]} 4. Nc3 {[%emt 0:00:09]} dxc4 {[%emt 0:01:42]} 5. e3 {[%emt 0:01:44]} b5 {[%emt 0:03:41]} 6. a4 {[%emt 0:00:39]} b4 {[%emt 0:00:17]} 7. Na2 {[%emt 0:00:26]} a5 {[%emt 0:00:17]} 8. Bxc4 {[%emt 0:00:12]} e6 {[%emt 0:00:20]} 9. O-O {[%emt 0:01:17]} Be7 {[%emt 0:02:52]} 10. Re1 {[%emt 0:03:06]} Bb7 {[%emt 0:03:01]} 11. Bd2 {[%emt 0:03:38]} O-O {[%emt 0:02:08]} 12. Nc1 {[%emt 0:00:08]} Nbd7 {[%emt 0:01:27]} 13. Nb3 {[%emt 0:00:26]} Qc7 {[%emt 0:15:57]} 14. e4 {[%emt 0:08:26]} h6 {[%emt 0:03:05]} 15. e5 {[%emt 0:03:02]} Nd5 {[%emt 0:00:46]} 16. Qe2 {[%emt 0:02:09]} N5b6 {[%emt 0:03:54]} 17. Bd3 {[%emt 0:01:21]} Rfc8 {[%emt 0:03:46]} 18. Qe4 {[%emt 0:02:34]} Nf8 {[%emt 0:01:37]} 19. Qg4 {[%emt 0:00:45]} Kh8 {[%emt 0:01:03]} 20. Qh5 {[%emt 0:03:43]} Kg8 {[%emt 0:03:15]} 21. Re4 {[%emt 0:07:10]} Ba6 {[%emt 0:03:29]} 22. Bc2 {[%emt 0:08:59]} f5 {[%emt 0:06:17]} 23. exf6 {[%emt 0:03:07]} Bxf6 {[%emt 0:00:24]} 24. Rg4 {[%emt 0:01:10]} Qf7 {[%emt 0:03:26]} 25. Qxh6 {[%emt 0:02:55]} Be2 {[%emt 0:03:01]} 26. Qe3 {[%emt 0:03:52]} Qh5 {[%emt 0:02:19]} 27. h3 {[%emt 0:01:36]} Bc4 {[%emt 0:02:21]} 28. Nc5 {[%emt 0:01:21]} Bd5 {[%emt 0:01:06]} 29. Qf4 {[%emt 0:01:13]} Qf7 {[%emt 0:04:25]} 30. Re1 {[%emt 0:05:56]} Nc4 {[%emt 0:05:57]} 31. Bc1 {[%emt 0:00:36]} Rd8 {[%emt 0:00:45]} 32. h4 {[%emt 0:03:08]} Bxf3 {[%emt 0:01:04]} 33. Qxf3 {[%emt 0:00:15]} Bxd4 {[%emt 0:01:14]} 34. Nxe6 {[%emt 0:08:26]} Qxf3 {[%emt 0:07:59]} 35. gxf3 {[%emt 0:00:25]} Nxe6 {[%emt 0:00:18]} 36. Rxe6 {[%emt 0:00:09]} Bxb2 {[%emt 0:01:02]} 37. Bxb2 {[%emt 0:07:57]} Nxb2 {[%emt 0:00:02]} 38. Re7 {[%emt 0:00:09]} Re8 {[%emt 0:05:27]} 39. Rgxg7+ {[%emt 0:01:43]} Kh8 {[%emt 0:00:35]} 40. Rh7+ {[%emt 0:01:10]} Kg8 {[%emt 0:30:03]} 41. Bb3+ {[%emt 0:31:42]} Kf8 {[%emt 0:02:02]} 1-0

[Event "9. Korbacher Open 2017"]
[Site "Korbach"]
[Date "2017.10.21"]
[Round "5"]
[White "Wachsmann, Dietmar"]
[Black "Hoekstra, Peter"]
[Result "1-0"]
[ECO "C01"]
[WhiteElo "1930"]
[BlackElo "2074"]
[Annotator "NA"]
[PlyCount "67"]
[EventDate "2017.??.??"]
[EventType "swiss"]
[EventCountry "GER"]
[SourceTitle "playchess.com"]
[Source "ChessBase"]
[SourceQuality "1"]
[TimeControl "40/5400+30:1800+30"]

1. e4 {[%emt 0:00:00]} e6 {[%emt 0:01:51]} 2. d4 {[%emt 0:00:00]} d5 {[%emt 0:00:15]} 3. exd5 {[%emt 0:00:00]} exd5 {[%emt 0:00:03]} 4. Nf3 {[%emt 0:00:00]} Nf6 {[%emt 0:02:20]} 5. c4 {[%emt 0:00:13]} Bb4+ {[%emt 0:00:10]} 6. Nc3 {[%emt 0:00:19]} O-O {[%emt 0:00:20]} 7. Be2 {[%emt 0:02:09]} Ne4 {[%emt 0:04:48]} 8. Qb3 {[%emt 0:04:08]} Bxc3+ {[%emt 0:04:00]} 9. bxc3 {[%emt 0:00:10]} c6 {[%emt 0:02:28]} 10. O-O {[%emt 0:00:56]} Re8 {[%emt 0:00:30]} 11. Re1 {[%emt 0:03:22]} Qb6 {[%emt 0:07:20]} 12. Bd3 {[%emt 0:08:49]} Bd7 {[%emt 0:10:49]} 13. Qc2 {[%emt 0:06:56]} Na6 {[%emt 0:01:44]} 14. Ne5 {[%emt 0:12:40]} Be6 {[%emt 0:01:08]} 15. f3 {[%emt 0:06:25]} f6 {[%emt 0:08:19]} 16. Rb1 {[%emt 0:05:47]} Qc7 {[%emt 0:01:52]} 17. fxe4 {[%emt 0:02:44]} fxe5 {[%emt 0:03:28]} 18. exd5 {[%emt 0:02:44]} cxd5 {[%emt 0:00:33]} 19. Bxh7+ {[%emt 0:01:07]} Kh8 {[%emt 0:00:04]} 20. Rxe5 {[%emt 0:02:44]} Bf7 {[%emt 0:00:52]} 21. Bf4 {[%emt 0:00:53]} Rxe5 {[%emt 0:00:04]} 22. Bxe5 {[%emt 0:00:15]} Qd7 {[%emt 0:00:15]} 23. Bf5 {[%emt 0:01:52]} Qe7 {[%emt 0:00:06]} 24. Qd3 {[%emt 0:00:42]} Qh4 {[%emt 0:01:35]} 25. Rxb7 {[%emt 0:03:30]} Nc5 {[%emt 0:00:42]} 26. dxc5 {[%emt 0:00:48]} Qe1+ {[%emt 0:00:27]} 27. Qf1 {[%emt 0:00:01]} Qe3+ {[%emt 0:00:06]} 28. Kh1 {[%emt 0:00:31]} Qxe5 {[%emt 0:00:54]} 29. Rxf7 {[%emt 0:00:13]} Re8 {[%emt 0:00:38]} 30. g3 {[%emt 0:03:22]} Qxc3 {[%emt 0:00:08]} 31. Bg6 {[%emt 0:06:19]} Kg8 {[%emt 0:00:15]} 32. Rxa7 {[%emt 0:00:42]} Rf8 {[%emt 0:00:26]} 33. Bf7+ {[%emt 0:00:23]} Kh8 {[%emt 0:00:04]} 34. Qh3# {[%emt 0:00:05]} 1-0

[Event "9. Korbacher Open 2017"]
[Site "Korbach"]
[Date "2017.10.21"]
[Round "5"]
[White "Petras, Nils"]
[Black "Hansen, Flemming Haupt"]
[Result "1/2-1/2"]
[ECO "A05"]
[WhiteElo "1922"]
[BlackElo "2121"]
[Annotator "NA"]
[PlyCount "79"]
[EventDate "2017.??.??"]
[EventType "swiss"]
[EventCountry "GER"]
[SourceTitle "playchess.com"]
[Source "ChessBase"]
[SourceQuality "1"]
[TimeControl "40/5400+30:1800+30"]

1. Nf3 {[%emt 0:00:00]} Nf6 {[%emt 0:00:09]} 2. c4 {[%emt 0:00:00]} g6 {[%emt 0:00:22]} 3. Nc3 {[%emt 0:00:08]} d5 {[%emt 0:00:21]} 4. cxd5 {[%emt 0:00:11]} Nxd5 {[%emt 0:00:08]} 5. g3 {[%emt 0:01:15]} Bg7 {[%emt 0:00:20]} 6. Bg2 {[%emt 0:00:49]} O-O {[%emt 0:02:53]} 7. O-O {[%emt 0:01:09]} c6 {[%emt 0:05:28]} 8. Qb3 {[%emt 0:02:40]} Nb6 {[%emt 0:01:23]} 9. d4 {[%emt 0:03:32]} Be6 {[%emt 0:02:05]} 10. Qc2 {[%emt 0:00:46]} Na6 {[%emt 0:00:29]} 11. a3 {[%emt 0:04:30]} Qc8 {[%emt 0:01:48]} 12. Bf4 {[%emt 0:04:06]} Nc4 {[%emt 0:05:53]} 13. e4 {[%emt 0:02:21]} Bg4 {[%emt 0:01:46]} 14. b3 {[%emt 0:03:35]} Bxf3 {[%emt 0:05:10]} 15. Bxf3 {[%emt 0:00:17]} e5 {[%emt 0:00:20]} 16. bxc4 {[%emt 0:04:08]} exf4 {[%emt 0:00:23]} 17. Rad1 {[%emt 0:00:52]} Qe6 {[%emt 0:03:13]} 18. Ne2 {[%emt 0:03:12]} fxg3 {[%emt 0:01:04]} 19. hxg3 {[%emt 0:00:51]} Rad8 {[%emt 0:02:25]} 20. Kg2 {[%emt 0:06:27]} Rfe8 {[%emt 0:06:52]} 21. e5 {[%emt 0:09:40]} Qe7 {[%emt 0:09:36]} 22. Qb3 {[%emt 0:06:45]} Rb8 {[%emt 0:03:11]} 23. Nf4 {[%emt 0:03:00]} Nc7 {[%emt 0:02:39]} 24. Rfe1 {[%emt 0:01:54]} g5 {[%emt 0:14:30]} 25. Nh5 {[%emt 0:05:37]} Bh8 {[%emt 0:00:18]} 26. Qd3 {[%emt 0:04:49]} Ne6 {[%emt 0:02:20]} 27. Qf5 {[%emt 0:02:08]} Nf8 {[%emt 0:00:26]} 28. Nf6+ {[%emt 0:06:28]} Bxf6 {[%emt 0:00:08]} 29. exf6 {[%emt 0:00:05]} Qxa3 {[%emt 0:00:11]} 30. Qxg5+ {[%emt 0:00:12]} Ng6 {[%emt 0:00:11]} 31. Qh6 {[%emt 0:00:12]} Qf8 {[%emt 0:00:06]} 32. Qh5 {[%emt 0:06:53]} Rxe1 {[%emt 0:01:50]} 33. Rxe1 {[%emt 0:00:06]} Rd8 {[%emt 0:02:29]} 34. Rh1 {[%emt 0:00:33]} h6 {[%emt 0:00:08]} 35. Be4 {[%emt 0:01:26]} Kh7 {[%emt 0:00:09]} 36. d5 {[%emt 0:02:18]} Rd6 {[%emt 0:01:03]} 37. Qf5 {[%emt 0:02:00]} Qd8 {[%emt 0:00:40]} 38. Rxh6+ {[%emt 0:03:03]} Kxh6 {[%emt 0:00:55]} 39. Qh3+ {[%emt 0:00:08]} Kg5 {[%emt 0:00:04]} 40. Qf5+ {[%emt 0:00:31]} 1/2-1/2

[Event "9. Korbacher Open 2017"]
[Site "Korbach"]
[Date "2017.10.21"]
[Round "5"]
[White "Wuestehube, Harry"]
[Black "Rutz, Matthias"]
[Result "1/2-1/2"]
[ECO "B12"]
[WhiteElo "1906"]
[BlackElo "2046"]
[Annotator "NA"]
[PlyCount "39"]
[EventDate "2017.??.??"]
[EventType "swiss"]
[EventCountry "GER"]
[SourceTitle "playchess.com"]
[Source "ChessBase"]
[SourceQuality "1"]
[TimeControl "40/5400+30:1800+30"]

1. e4 {[%emt 0:00:00]} c6 {[%emt 0:00:15]} 2. d4 {[%emt 0:00:00]} d5 {[%emt 0:00:18]} 3. e5 {[%emt 0:00:00]} c5 {[%emt 0:00:21]} 4. dxc5 {[%emt 0:00:09]} e6 {[%emt 0:00:38]} 5. a3 {[%emt 0:00:50]} Nc6 {[%emt 0:03:11]} 6. Nf3 {[%emt 0:00:46]} Bxc5 {[%emt 0:00:27]} 7. b4 {[%emt 0:03:10]} Bb6 {[%emt 0:00:35]} 8. Bb2 {[%emt 0:01:06]} Nge7 {[%emt 0:01:57]} 9. Bd3 {[%emt 0:03:11]} Ng6 {[%emt 0:09:03]} 10. O-O {[%emt 0:01:24]} O-O {[%emt 0:02:15]} 11. c4 {[%emt 0:13:18]} dxc4 {[%emt 0:15:32]} 12. Bxc4 {[%emt 0:00:25]} Bc7 {[%emt 0:02:51]} 13. Qe2 {[%emt 0:02:39]} a6 {[%emt 0:03:08]} 14. Nbd2 {[%emt 0:13:06]} Ncxe5 {[%emt 0:06:24]} 15. Nxe5 {[%emt 0:16:35]} Nxe5 {[%emt 0:00:40]} 16. Bxe5 {[%emt 0:00:00]} Bxe5 {[%emt 0:00:08]} 17. Qxe5 {[%emt 0:00:00]} Qxd2 {[%emt 0:00:12]} 18. Rfd1 {[%emt 0:02:08]} Qh6 {[%emt 0:01:29]} 19. Be2 {[%emt 0:04:18]} Qf6 {[%emt 0:07:46]} 20. Qc7 {[%emt 0:03:35]} 1/2-1/2

[Event "9. Korbacher Open 2017"]
[Site "Korbach"]
[Date "2017.10.21"]
[Round "5"]
[White "Buese, Ralf"]
[Black "Koerber, Thomas"]
[Result "1/2-1/2"]
[ECO "A45"]
[WhiteElo "1892"]
[BlackElo "1857"]
[Annotator "NA"]
[PlyCount "32"]
[EventDate "2017.??.??"]
[EventType "swiss"]
[EventCountry "GER"]
[SourceTitle "playchess.com"]
[Source "ChessBase"]
[SourceQuality "1"]
[TimeControl "40/5400+30:1800+30"]

1. d4 {[%emt 0:03:04]} Nf6 {[%emt 0:00:29]} 2. Bf4 {[%emt 0:00:15]} d5 {[%emt 0:01:04]} 3. e3 {[%emt 0:00:07]} e6 {[%emt 0:00:38]} 4. Bd3 {[%emt 0:00:27]} Nc6 {[%emt 0:01:10]} 5. Nf3 {[%emt 0:03:46]} Bd6 {[%emt 0:01:54]} 6. Bg3 {[%emt 0:05:02]} Ne4 {[%emt 0:03:00]} 7. Bh4 {[%emt 0:07:31]} Be7 {[%emt 0:00:21]} 8. Bxe7 {[%emt 0:02:23]} Qxe7 {[%emt 0:00:14]} 9. c3 {[%emt 0:00:29]} O-O {[%emt 0:01:56]} 10. O-O {[%emt 0:02:46]} a6 {[%emt 0:00:17]} 11. a4 {[%emt 0:03:02]} e5 {[%emt 0:04:50]} 12. dxe5 {[%emt 0:05:56]} Nxe5 {[%emt 0:00:17]} 13. Nxe5 {[%emt 0:00:11]} Qxe5 {[%emt 0:00:08]} 14. Nd2 {[%emt 0:00:07]} Nxd2 15. Qxd2 Bf5 16. Bxf5 Qxf5 1/2-1/2

[Event "9. Korbacher Open 2017"]
[Site "Korbach"]
[Date "2017.10.21"]
[Round "5"]
[White "Lehmann, Tim"]
[Black "Boehme, Jonas"]
[Result "1/2-1/2"]
[ECO "A80"]
[WhiteElo "1865"]
[BlackElo "1675"]
[Annotator "NA"]
[PlyCount "41"]
[EventDate "2017.??.??"]
[EventType "swiss"]
[EventCountry "GER"]
[SourceTitle "playchess.com"]
[Source "ChessBase"]
[SourceQuality "1"]
[TimeControl "40/5400+30:1800+30"]

1. d4 {[%emt 0:00:00]} f5 {[%emt 0:00:01]} 2. Bg5 {[%emt 0:00:42]} g6 {[%emt 0:01:05]} 3. h4 {[%emt 0:00:35]} Nf6 {[%emt 0:02:48]} 4. e3 {[%emt 0:00:11]} Bg7 {[%emt 0:03:24]} 5. Nc3 {[%emt 0:01:17]} c6 {[%emt 0:02:27]} 6. Be2 {[%emt 0:04:08]} Qb6 {[%emt 0:02:11]} 7. Rb1 {[%emt 0:06:32]} Ne4 {[%emt 0:03:59]} 8. Nxe4 {[%emt 0:05:36]} fxe4 {[%emt 0:03:47]} 9. Bf4 {[%emt 0:00:19]} Qa5+ {[%emt 0:01:56]} 10. c3 {[%emt 0:00:19]} Qxa2 {[%emt 0:00:49]} 11. Qc2 {[%emt 0:00:21]} d6 {[%emt 0:03:47]} 12. h5 {[%emt 0:00:44]} Be6 {[%emt 0:04:11]} 13. hxg6 {[%emt 0:03:44]} hxg6 {[%emt 0:00:30]} 14. Rxh8+ {[%emt 0:00:10]} Bxh8 {[%emt 0:00:02]} 15. Nh3 {[%emt 0:01:09]} Nd7 {[%emt 0:05:45]} 16. Ng5 {[%emt 0:01:48]} Qb3 {[%emt 0:02:57]} 17. Bd1 {[%emt 0:03:38]} Qxc2 {[%emt 0:01:56]} 18. Bxc2 {[%emt 0:00:16]} Bf5 {[%emt 0:01:36]} 19. Bxe4 {[%emt 0:00:37]} Bxe4 {[%emt 0:02:20]} 20. Nxe4 {[%emt 0:00:08]} O-O-O {[%emt 0:00:58]} 21. Ng5 1/2-1/2

[Event "9. Korbacher Open 2017"]
[Site "Korbach"]
[Date "2017.10.21"]
[Round "5"]
[White "Trienekens, Tjark"]
[Black "Koellner, Christof"]
[Result "0-1"]
[ECO "B07"]
[WhiteElo "1865"]
[BlackElo "2073"]
[Annotator "NA RC"]
[PlyCount "103"]
[EventDate "2017.??.??"]
[EventType "swiss"]
[EventCountry "GER"]
[SourceTitle "playchess.com"]
[Source "ChessBase"]
[SourceQuality "1"]
[TimeControl "40/5400+30:1800+30"]

1. e4 {[%emt 0:00:11]} d6 {[%emt 0:00:05]} 2. d4 {[%emt 0:00:58]} Nf6 {[%emt 0:00:02]} 3. Nc3 {[%emt 0:01:02]} e5 {[%emt 0:00:03]} 4. dxe5 {[%emt 0:01:39]} dxe5 {[%emt 0:00:05]} 5. Qxd8+ {[%emt 0:01:08]} Kxd8 {[%emt 0:00:02]} 6. Bc4 {[%emt 0:01:22]} Be6 {[%emt 0:00:08]} 7. Bxe6 {[%emt 0:01:16]} fxe6 {[%emt 0:00:02]} 8. a3 {[%emt 0:04:00] B07: Pirc Defence: Miscellaneous Systems} (8. f3 Nbd7 9. Be3 Bc5 10. Ke2 Ke7 11. Nh3 Bxe3 12. Kxe3 Rhd8 13. Nf2 {½-½ (13) Stevic,H (2618)-Palac,M (2579) Plitvicka Jezera 2013}) 8... Bd6 {[%emt 0:00:21]} 9. Nf3 {[%emt 0:02:19]} Ke7 {[%emt 0:00:43]} 10. Bg5 {[%emt 0:04:49]} Nc6 {[%emt 0:01:34]} 11. Rd1 {[%emt 0:08:35]} a6 $146 {[%emt 0:00:33]} ({Predecessor:} 11... h6 12. Bh4 g5 13. Bg3 Nh5 14. Ne2 Rag8 15. c4 a5 16. Nc3 Nf4 17. O-O {0-1 (36) Keller,Y (1608)-Wachsmann,D (1776) Bad Homburg 2015}) 12. h3 {[%emt 0:08:05]} b5 {[%emt 0:02:58]} 13. b4 h6 {[%emt 0:09:26]} 14. Bxf6+ {[%emt 0:19:36]} gxf6 {[%emt 0:01:20]} 15. Ke2 {[%emt 0:13:03]} Rhb8 {[%emt 0:01:42]} 16. Na2 {[%emt 0:02:46]} a5 {[%emt 0:03:05]} 17. c3 {[%emt 0:00:58]} axb4 {[%emt 0:07:12]} 18. Nxb4 {[%emt 0:00:23]} Rb6 {[%emt 0:02:00]} 19. Ra1 {[%emt 0:03:24]} Ra4 {[%emt 0:01:38]} 20. Nd2 {[%emt 0:02:40]} Na5 {[%emt 0:00:35]} 21. Rhb1 {[%emt 0:03:08]} c5 {[%emt 0:09:26]} 22. Nd3 {[%emt 0:02:13]} Nc6 {[%emt 0:15:44]} 23. Nb2 {[%emt 0:02:12]} Raa6 {[%emt 0:01:47]} 24. a4 {[%emt 0:01:19]} b4 {[%emt 0:04:21]} 25. Nbc4 {[%emt 0:02:24]} Rb8 {[%emt 0:01:29]} 26. Nxd6 {[%emt 0:01:39]} Kxd6 {[%emt 0:00:09]} 27. Nc4+ {[%emt 0:00:05]} Ke7 {[%emt 0:01:48]} 28. Kd3 {[%emt 0:03:56]} Rba8 {[%emt 0:07:58]} 29. a5 {[%emt 0:03:57]} R8a7 {[%emt 0:03:50]} 30. cxb4 {[%emt 0:00:56]} cxb4 {[%emt 0:03:16]} 31. Nb6 {[%emt 0:01:01]} Kf7 {[%emt 0:04:50]} 32. Nc4 {[%emt 0:00:26]} Rd7+ {[%emt 0:02:48]} 33. Kc2 {[%emt 0:00:42]} Rd4 {[%emt 0:01:57]} 34. Kb3 {[%emt 0:03:19]} Kg6 {[%emt 0:04:24]} 35. Rd1 {[%emt 0:01:02]} Rxe4 {[%emt 0:02:29]} 36. Rd6 {[%emt 0:00:20]} Rxc4 {[%emt 0:05:39]} 37. Kxc4 {[%emt 0:00:01]} Nxa5+ {[%emt 0:00:13]} 38. Kxb4 {[%emt 0:01:04]} Rxd6 {[%emt 0:00:25]} 39. Kxa5 {[%emt 0:00:50]} Rd2 {[%emt 0:00:17]} 40. Rf1 {[%emt 0:00:06]} Rb2 {[%emt 0:30:26]} 41. Ka4 {[%emt 0:30:29]} e4 {[%emt 0:02:03]} 42. Ka3 {[%emt 0:00:33]} Rb6 {[%emt 0:01:41]} 43. Ka2 {[%emt 0:00:00]} Kf5 {[%emt 0:00:00]} 44. Rc1 {[%emt 0:00:00]} Kf4 {[%emt 0:00:00]} 45. Rc7 {[%emt 0:00:00]} Rd6 {[%emt 0:00:00]} 46. Rc2 {[%emt 0:00:00]} Rb6 {[%emt 0:00:00]} 47. Rc7 {[%emt 0:00:00]} f5 {[%emt 0:00:00]} 48. Rf7 {[%emt 0:00:00]} Rd6 {[%emt 0:00:00]} 49. g4 {[%emt 0:01:16]} Rd2+ {[%emt 0:00:00]} 50. Kb3 {[%emt 0:00:11]} Rxf2 {[%emt 0:00:00]} 51. Kc4 {[%emt 0:00:48]} Rh2 $19 {[%emt 0:00:00]} 52. Kd4 {Ke5+} 0-1

[Event "9. Korbacher Open 2017"]
[Site "Korbach"]
[Date "2017.10.21"]
[Round "5"]
[White "Flach, Helene"]
[Black "Meyer, Marcel"]
[Result "1/2-1/2"]
[ECO "B18"]
[WhiteElo "1862"]
[BlackElo "1740"]
[Annotator "NA"]
[PlyCount "43"]
[EventDate "2017.??.??"]
[EventType "swiss"]
[EventCountry "GER"]
[SourceTitle "playchess.com"]
[Source "ChessBase"]
[SourceQuality "1"]
[TimeControl "40/5400+30:1800+30"]

1. e4 {[%emt 0:00:00]} c6 {[%emt 0:00:20]} 2. d4 {[%emt 0:00:00]} d5 {[%emt 0:00:12]} 3. Nc3 {[%emt 0:00:35]} dxe4 {[%emt 0:00:08]} 4. Nxe4 {[%emt 0:00:04]} Bf5 {[%emt 0:00:10]} 5. Ng3 {[%emt 0:00:05]} Bg6 {[%emt 0:00:08]} 6. Nf3 {[%emt 0:00:23]} e6 {[%emt 0:00:08]} 7. Bd3 {[%emt 0:00:11]} Bxd3 {[%emt 0:00:08]} 8. Qxd3 {[%emt 0:00:05]} Nd7 {[%emt 0:00:14]} 9. O-O {[%emt 0:00:40]} Qc7 {[%emt 0:00:16]} 10. c4 {[%emt 0:00:11]} Ngf6 {[%emt 0:00:35]} 11. Re1 {[%emt 0:00:19]} Bb4 {[%emt 0:04:19]} 12. Bd2 {[%emt 0:02:26]} Bxd2 {[%emt 0:01:58]} 13. Qxd2 {[%emt 0:00:22]} O-O {[%emt 0:00:39]} 14. Rad1 {[%emt 0:00:29]} Rad8 {[%emt 0:03:34]} 15. Qc2 {[%emt 0:01:40]} Qa5 {[%emt 0:09:37]} 16. b3 {[%emt 0:01:05]} Rfe8 {[%emt 0:01:53]} 17. Rd2 {[%emt 0:10:55]} Nf8 {[%emt 0:02:14]} 18. Red1 {[%emt 0:03:10]} Ng6 {[%emt 0:06:07]} 19. Ne4 {[%emt 0:05:56]} Qf5 {[%emt 0:07:09]} 20. Nxf6+ {[%emt 0:00:34]} Qxf6 {[%emt 0:00:10]} 21. Qe4 {[%emt 0:06:06]} Qf4 {[%emt 0:03:24]} 22. Qxf4 {[%emt 0:03:32]} 1/2-1/2